{"text_format":"3","workbook":"xlsx","n_sheets":1,"sheets":["Sheet1"],"not_rendered":{"defined_names":3},"read":"whole","date_system":"1900"}

{"sheet":"Sheet1","index":0,"n_rows":535,"n_cols":13,"rows_kept":535}
[null,null,"Sample Items:"]
[]
[null,null,"Product Description","Pack","Size","Brand","Cases QTY","Split QTY","Price per Pack Size","Price per LB","Extended Price","Total"]
[null,null,"DAIRY",{"$nulls":9},{"$f":"SUM(L5:L40)","v":{"v":0,"d":"$0.00"}}]
[1,1,"EGG WHL LIQUID FRSH W/CITRC   ",2,"20 LB ","WHLFCLS",72]
[2,2,"CHEESE CHDR MILD FTHR SHRD YEL",4,"5 LB  ","CASASOL",49]
[3,3,"BUTTER SOLID USDA AA UNSLTD   ",30,"1 LB  ","WHLFIMP",90]
[4,4,"CHEESE CHDR MLD SLI INT .75 YL",8,"1.5 LB","BBRLIMP",35]
[5,5,"CREAMER HALF & HALF           ",12,"32 OZ ","WHLFCLS",69]
[6,6,"CHEESE MONTEREY JACK FTHR SHRD",4,"5 LB  ","CASASOL",36]
[7,7,"CHEESE PARM SHRD USA          ",2,"5 LB  ","AREZCLS",56]
[8,8,"CHEESE SWISS SLICE .75 OZ     ",8,"1.5 LB","BBRLIMP",35]
[9,9,"EGG SHELL LRG AA USDA WHT CDFA",1,"15 DZ ","WHLFCLS",110]
[10,10,"MILK SOY PLAIN                ",12,"32 OZ ","SILK   ",34]
[11,11,"MILK SOY VAN SILK ASP PRISMA  ",18,"8 OZ  ","SILK   ",65]
[12,12,"MILK SOY CHOC                 ",18,"8 OZ  ","SILK   ",59]
[13,13,"CREAM HEAVY 40%               ",6,".5 GAL","BERKFRM",75]
[14,14,"CREAM SOUR SEL 13%            ",2,"5 LB  ","WHLFCLS",78]
[15,15,"YOGURT VARIETY LNF STR/PCH/BLU",24,"5.3 OZ","DANNON ",65]
[16,16,"MILK HOMOGENIZED              ",2,"1 GAL ","WHLFCLS",98]
[17,17,"YOGURT STR/BLU LT&FT GREEK    ",12,"5.3OZ ","DANNON ",72]
[18,18,"YOGURT MIXED BERRIES FOB      ",12,"5.3 OZ","DANNON ",72]
[20,20,"YOGURT BLUEBERRY FOB          ",12,"5.3 OZ","DANNON ",72]
[21,21,"YOGURT PEACH LIGHT N FIT      ",12,"5.3 OZ","DANNON ",72]
[22,22,"YOGURT STRAWBERRY FOB         ",12,"5.3OZ ","DANNON ",72]
[23,23,"CHEESE PEPPER JACK SLI .75OZ  ",8,"1.5 LB","BBRLIMP",15]
[24,24,"CHEESE PROV NONSMK SLI INT .75",8,"1.5 LB","BBRLIMP",4]
[25,25,"CHEESE MOZZ FRSH CILIEGN 1/3OZ",2,"3 LB  ","AREZZIO",4]
[27,27,"YOGURT PLAIN GREEK NONFAT     ",6,"32 OZ ","DANNON ",19]
[28,28,"CHEESE GRUYERE KING CUTS      ",2,"6#AVG ","BBRLIMP",1]
[29,29,"CHEESE MOZZARELLA LMWM SHRD   ",6,"5 LB  ","AREZIMP",null,45]
[31,31,"CHEESE FETA CRUMBLED          ",2,"5 LB  ","SYS IMP",10]
[32,32,"BUTTER CUP USDA AA            ",720,"5 GM  ","WHLFIMP",12]
[34,34,"YOGURT PLAIN GREEK BAG OIKOS  ",2,"6 LB  ","DANNON ",12]
[36,36,"EGG WHITE LIQ W/TEC OPT CHOICE",12,"2 LB  ","WHLFCLS",5]
[37,37,"CHEESE CREAM LOAF             ",10,"3 LB  ","WHLFIMP",null,16]
[39,39,"CHEESE BLUE CRUMBLES          ",2,"5 LB  ","SYS IMP",19]
[40,40,"BUTTERMILK 1% LOW FAT         ",6,".5 GAL","WHLFCLS",25]
[42,42,"CHEESE ASIAGO WHL 1/4 5M CRYO ",4,"6#AVG ","AREZCLS",null,4]
[43,43,"CHEESE PARM GRTD FRSH USA     ",4,"5LB   ","CUC AND",null,4]
[47,null,"MEAT",{"$nulls":9},{"$f":"SUM(L42:L56)","v":{"v":0,"d":"$0.00"}}]
[48,47,"BACON LAYFLAT C/C 13/17 NAT GF",1,"15 LB ","HORMEL ",125]
[49,48,"BEEF PATTY CHK FC SEA HS FRZ  ",40,"4 OZ  ","CAB    ",95]
[50,49,"PORK RIB ST.LOUIS PECAN SMKD  ",12,"1.75# ","AUSTBLU",15]
[52,51,"BEEF ROAST TOP RND C/O SPT 25 ",2,"8-11# ","BBRLREL",15]
[53,52,"SAUSAGE PORK PTY NATURAL 2OZ  ",1,"10 LB ","HORMEL ",55]
[55,54,"SAUSAGE ANDOUILLE 4X1 6       ",2,"5 LB  ","SILVA  ",15]
[56,55,"SALAMI HARD SLI               ",2,"5 LB  ","WILSON ",15]
[57,56,"PORK CHOP BNLS C/C ALWAYS TNDR",40,"4 OZ  ","HORMEL ",9]
[61,60,"FRANK ALL-BEEF 6X1 6          ",2,"5 LB  ","BBRLIMP",7]
[63,62,"SAUSAGE LINK HOT SKLS 4X1 6 IN",1,"10 LB ","MILLER ",4]
[64,63,"MEATBALL TURKEY COOKED        ",2,"5LB   ","BTRBALL",5]
[67,66,"MEATBALL BEEF ITAL STYLE .5 OZ",2,"5 LB  ","AREZZIO",3]
[71,70,"BEEF GRND BULK 81/19 CHUB FRS ",4,"5#AV  ","FIRECLS",1]
[72,71,"BEEF GRND BULK 85/15 CHUB FRS ",4,"5#AV  ","FIRECLS",1]
[73,72,"PEPPERONI SLICED PORK&BF14-16C",1,"10 LB ","AREZZIO",1]
[77,null,"SEAFOOD",{"$nulls":9},{"$f":"SUM(L58:L66)","v":{"v":0,"d":"$0.00"}}]
[78,76,"TILAPIA FILLET BLSL IVP 5-7 OZ",1,"10LB  ","PORTBTY",25]
[79,77,"SHRIMP CW PUD CKD 250/350     ",2,"5 LB  ","PORTPRM",9]
[80,78,"SHRIMP WHT GH 21/25           ",6,"4 LB  ","PORTBTY",5]
[81,79,"CATFISH FIL SHANK 5-7 OZ USA  ",1,"15LB  ","PORTBTY",7]
[82,80,"COD ATL LOIN IQF 4 OZ ASIA    ",1,"10 LB ","PORTBTY",8]
[83,81,"CRAB IMIT FLAKE STYL -2% CRAB ",6,"2.5 LB","PORTBTY",8]
[84,82,"SHRIMP WHT P&D TLON 16/20     ",4,"2.5 LB","PORTBTY",3]
[86,84,"TILAPIA FILLET BLSL IQF 3-5 OZ",2,"5 LB  ","PORTBTY",2]
[87,85,"SHRIMP WHT GH 16-20           ",6,"4 LB  ","PORTBTY",null,3]
[89,null,"POULTRY",{"$nulls":9},{"$f":"SUM(L68:L81)","v":{"v":0,"d":"$0.00"}}]
[90,87,"TURKEY BRST HCK SMK SKN IMP   ",2,"8-10# ","BBRLIMP",45]
[91,88,"CHICKEN BRST IFZ BNLS/SKLS ZIP",48,"4 OZ  ","SYS CLS",80]
[92,89,"CHICKEN CVP THIGH BNLS SKLS   ",4,"10 LB ","SYS CLS",35]
[93,90,"CHICKEN BRST FIRE BRAISED 4OZ ",2,"5#AVG ","HORMEL ",42]
[94,91,"SAUSAGE CHKN APPLE SMKD 1.5 OZ",4,"3 LB  ","AIDELLS",26]
[95,92,"SAUSAGE TURKEY PTY CKD 1.6OZ  ",1,"10LB  ","SYS CLS",33]
[96,93,"CHICKEN LEG QTR IF            ",60,"8.7 OZ","SYS CLS",17]
[98,95,"CHICKEN CVP LEG QUARTER ESL   ",1,"40 LB ","TYSON  ",11]
[99,96,"BACON TURKEY SLI              ",16,"12 OZ ","OSC MYR",11]
[100,97,"CHICKEN WING IQF 1ST JOINT    ",3,"5 LB  ","TYSON  ",7]
[101,98,"TURKEY BURGER PEPPER GARLIC   ",40,"5.33OZ","SYS CLS",9]
[106,103,"CHICKEN WING DINGS BRD JMBO   ",2,"7.5 LB","PIERCE ",3]
[107,104,"SAUSAGE SMK CHICKEN/APL 3.5 OZ",4,"3 LB  ","AIDELLS",2]
[108,105,"TURKEY GROUND 85/15           ",2,"10LB  ","SYS CLS",1]
[113,null,"DRY GOODS, BAKING,STAPLES",{"$nulls":9},{"$f":"SUM(L83:L146)","v":{"v":0,"d":"$0.00"}}]
[114,110,"POTATO H/BRN IQF LOOSE SHRED  ",6,"5 LB  ","SYS IMP",75]
[115,111,"APTZR BACON & BLUE CHS MTBL   ",80,"1.5 OZ","PAULSEN",9]
[116,112,"MUFFIN ENGLISH SANDWICH 3 OZ  ",6,"8 CT  ","THOMAS ",35]
[117,113,"TORTILLA FLOUR PRESS 13       ",12,"12 CT ","MISSION",33]
[118,114,"BUN HAMBURGER SESAME 5\" 3OZ   ",10,"6 CT  ","SYS CLS",49]
[119,115,"BREAD TEXAS TOAST YEL 1       ",8,"24 OZ ","SYS CLS",37]
[120,116,"PATTY VEG SAUSAGE BREAKFAST   ",112,"1.34OZ","MORNSTR",21]
[126,122,"BUN HOT DOG PLAIN 6\" 1.9 OZ   ",8,"12 CT ","SYS CLS",20]
[127,123,"BREAD WHEATBERRY DELI 5/8 SLI ",10,"32 OZ ","BBRLCLS",15]
[129,125,"PATTY BLK BEAN BURGER CHIPOTLE",48,"4.25OZ","MORNSTR",8]
[131,127,"DOUGH COOKIE PEANUT BUTR      ",216,"1.5 OZ","BKRSCLS",7]
[132,128,"DOUGH COOKIE OATMEAL RSN      ",216,"1.5 OZ","BKRSCLS",7]
[133,129,"NOODLE CHOW MEIN BKD          ",8,"3 LB  ","FORTUN ",10]
[134,130,"RAVIOLI STRIPED SPINACH/CHZ PC",2,"3 LB  ","AREZZIO",11]
[135,131,"DOUGH COOKIE CHOC CHIP        ",216,"1.5 OZ","BKRSCLS",7]
[136,132,"BREAD FOCACCIA QTR SHEET      ",10,"16 OZ ","LA BREA",11]
[137,133,"RAVIOLI JUMBO THREE CHS       ",2,"5 LB  ","AREZZIO",8]
[138,134,"DOUGH COOKIE SUGAR            ",216,"1.5 OZ","BKRSCLS",6]
[139,135,"PASTA TORTELLINI TRICLR W/CHS ",4,"2.5 LB","AREZZIO",8]
[142,138,"RAVIOLI MSHRM PORTABELLO SQR  ",2,"5 LB  ","AREZZIO",6]
[144,140,"VEGETABLE BLEND CHFCT SAN FRAN",6,"4 LB  ","SYS CLS",7]
[145,141,"ENTREE LASAGNA VEGETABLE      ",4,"6 LB  ","STOUFER",4]
[146,142,"DANISH ASST IW                ",24,"3 OZ  ","BKRSIMP",12]
[147,143,"ROLL DINNER HAWAIIAN BKD      ",10,"24 CT ","KINGHAW",5]
[148,144,"SAUCE PESTO BASIL FRZN        ",3,"30OZ  ","AREZZIO",7]
[149,145,"POTATO FRY 1/4 SS COATED      ",6,"4.5LB ","SYS IMP",8]
[153,149,"VEGETABLE BLEND CHFCUT SPRING ",6,"4 LB  ","SYS CLS",25]
[154,150,"VEGETABLE BLEND CALIF GRADE A ",6,"4 LB  ","SYS IMP",25]
[155,151,"WONTON SKIN FROZEN MED        ",24,"1 LB  ","HONGKNG",20]
[156,152,"BREADSTICK FRENCH PARBAKED    ",120,"1.8 OZ","RICHS  ",14]
[157,153,"BUN HAMBURGER WHT SLIDER3\" SLI",6,"24 CT ","OVNFRSH",15]
[159,155,"CORN WHL KERNEL GR A P        ",12,"2.5 LB","SYS CLS",26]
[160,156,"PATTY VEG ORIGINAL VEGGIE BURG",48,"3.4OZ ","GRDNBRG",18]
[161,157,"TART SHELL                    ",240,"3\"    ","LBA    ",39]
[162,158,"BUN HAMBURGER SESAME 4\" 1.75OZ",6,"12 CT ","SYS CLS",25]
[163,159,"DOUGH SHEET PHYLLO            ",12,"1 LB  ","GRK SPC",5]
[164,160,"ROLL SUB SLI 6                ",12,"6 CT  ","BBRLCLS",50]
[165,161,"ROLL DINNER BKD 1.1 OZ        ",3,"48 CT ","PEPFARM",38]
[166,162,"CROISSANT BUTTER MINI         ",1,"160CT ","DELIFRN",35]
[167,163,"ENTREE LASAGNA MEAT           ",4,"6 LB  ","STOUFER",16]
[168,164,"WRAP TORTILLA WHEAT 12        ",6,"12 CT ","MISSION",28]
[169,165,"PASTA TORTELLINI RAINBOW PRCKD",3,"3 LB  ","AREZZIO",36]
[170,166,"BREAD PITA PLAIN 7 IN         ",12,"10 CT ","KRONOS ",30]
[173,169,"CARROT DICED GR A P           ",12,"2 LB  ","SYS CLS",15]
[174,170,"BAGEL ASST #1 3 OZ SLI        ",12,"6 CT  ","BBRLCLS",35]
[175,171,"BREAD GARLIC 17 SLI           ",20,"12 OZ ","BKRSCLS",10]
[176,172,"ENTREE LASAGNA VEGETABLE      ",4,"5.75LB","SYS CLS",10]
[177,173,"PEA GREEN P                   ",12,"2.5 LB","SYS REL",25]
[178,174,"STRAWBERRY WHL FRZN IQF       ",1,"30 LB ","PACKER ",12]
[179,175,"BROWNIE FUDGE CHOC            ",4,"52 OZ ","DIANNES",10]
[180,176,"DANISH ASST 2.75 OZ           ",4,"12 CT ","BKRSCLS",15]
[181,177,"ROLL SUB MILANO 8IN PARBKD    ",66,"3.5OZ ","SIGNATR",15]
[182,178,"BREAD CIABATTA SNDW 4X4       ",64,"3 OZ  ","BKRSIMP",15]
[183,179,"POTATO H/BRN DICE BTR CRISPY  ",6,"6 LB  ","SYS IMP",15]
[184,180,"SOUP CHOWDER CLAM NEW ENG CONC",3,"4 LB  ","SYS CLS",5]
[185,181,"OKRA CUT IQF P                ",12,"3 LB  ","SYS IMP",5]
[186,182,"FRANK VEGETARIAN 5/LB 7       ",1,"10 LB ","YVES   ",18]
[187,183,"TORTILLA CORN TBL 6 WHT       ",6,"60CT  ","MISSION",20]
[188,184,"VEGETABLE BLEND CHFCUT BAHAMAS",6,"4 LB  ","SYS CLS",50]
[189,185,"MUFFIN ASST BLU/APP/BAN       ",72,"1.5 OZ","BKRSIMP",14]
[190,186,"SOYBEAN WHOLE EDAMAME SHELLED ",6,"2.5 LB","SIMPLOT",5]
[192,188,"SPINACH CHOPPED BAG           ",12,"3 LB  ","SYS CLS",20]
[194,190,"CRANBERRY WHL IQF             ",2,"5LB   ","SYS IMP",15]
[196,192,"TART SHELL SWEET UNBAKED      ",240,"2\"    ","LBA    ",10]
[197,null,"BEVERAGE, SNACKS, STAPLES",{"$nulls":9},{"$f":"SUM(L148:L337)","v":{"v":0,"d":"$0.00"}}]
[198,193,"OIL OLIVE BLEND 80/20         ",6,"1 GAL ","AREZZIO",35]
[199,194,"WRAP TORTILLA SPINACH HERB 12 ",6,"12 CT ","BBRLCLS",64]
[200,195,"MIX SNACK TRAIL MOUNTAIN      ",2,"5 LB  ","AZAR   ",39]
[201,196,"SHORTENING LIQ ZTF            ",1,"35 LB ","FRY-ON ",55]
[202,197,"TUNA LIGHT SKIPJACK POUCH PACK",6,"43 OZ ","INTLCLS",29]
[203,198,"SNACK BAR GRANOLA OATS N HNY  ",108,"1.5 OZ","NAT VLY",36]
[204,199,"JUICE DRINK GREEN MACH        ",8,"15.2OZ","NKDJUCE",60]
[205,200,"CHIP POTATO REG SNG SRV       ",104,"1 OZ  ","LAYS   ",35]
[206,201,"SYRUP PANCAKE CUP             ",100,"1.5 OZ","FLVFRSH",67]
[207,202,"MAYONNAISE PKT FOIL           ",500,"9 GM  ","SYS REL",26]
[208,203,"JUICE DRINK DBL BRY PROT ZONE ",8,"15.2OZ","NKDJUCE",60]
[209,204,"JUICE DRINK ORG MANGO MOTIO   ",8,"15.2OZ","NKDJUCE",60]
[210,205,"WATER BOTTLED SPRING RTD      ",48,"8OZ   ","NIAGARA",180]
[211,206,"MIX PANCAKE BTRMLK COMPLT     ",6,"5 LB  ","KRSTEAZ",26]
[212,207,"JUICE DRINK MIGHTY MANGO      ",8,"15.2OZ","NKDJUCE",60]
[213,208,"JUICE DRINK STWBRY BAN        ",8,"15.2OZ","NKDJUCE",60]
[214,209,"OIL OLIVE POMACE              ",3,"1GAL  ","AREZZIO",29]
[215,210,"BAR ENERGY CHOC BROWNIE       ",16,"12 CT ","CLFBARS",null,86]
[216,211,"BAR ENERGY CRNCHY PEANUT BTR  ",16,"12 CT ","CLFBARS",null,86]
[217,212,"JUICE DRINK BLUE MACH         ",8,"15.2OZ","NKDJUCE",60]
[218,213,"BAR ENERGY OATMEAL RSN WLNT   ",16,"12 CT ","CLFBARS",null,86]
[219,214,"JUICE DRINK RED MACH          ",8,"15.2OZ","NKDJUCE",60]
[220,215,"JUICE DRINK POWER C           ",8,"15.2OZ","NKDJUCE",60]
[221,216,"KETCHUP PACKET FCY            ",1000,"9 GM  ","HEINZ  ",41]
[222,217,"HONEY POUCH                   ",500,"9 GM  ","HSE REC",45]
[223,218,"SUGAR TURBINADO PACKET CANE   ",1200,"4.5 GM","NAT SGR",36]
[224,219,"SAUCE HOT                     ",200,"7 GR  ","CRYSTAL",96]
[225,220,"CEREAL ASSORTED FAV CUP PAK   ",60,"EA    ","KELLOGG",19]
[226,221,"MIX SOUP SPCY CHKN CUP-O-NOOD ",12,"2.25OZ","NISSIN ",92]
[227,222,"SNACK BAR GRANOLA VARIETY PAK ",120,".89 OZ","NAT VLY",58]
[228,223,"MIX SOUP CHICKEN CUP-O-NOODLE ",12,"2.25OZ","NISSIN ",92]
[229,224,"MILK COCONUT UNSWEETENED      ",24,"13.5OZ","CHAOKOH",19]
[230,225,"NUT CASHEW WHL SLTD FCY       ",3,"2 LB  ","SYS IMP",28]
[231,226,"RICE CONVERTED                ",1,"25 LB ","UNC BEN",29]
[232,227,"MIX SOUP SHRIMP CUP-O-NOODLE  ",12,"2.25OZ","NISSIN ",92]
[233,228,"WATER BOTTLED PET LOOSE       ",24,"20 OZ ","DASANI ",56]
[234,229,"SAUCE BBQ ORIGINAL PAIL       ",1,"5 GAL ","KC MAST",18]
[235,230,"PASTA PENNE RIGATE            ",2,"10 LB ","AREZZIO",36]
[236,231,"MAYONNAISE HEAVY DUTY         ",4,"1 GAL ","SYS REL",25]
[237,232,"CHIP POTATO REG LG SS         ",64,"1.5 OZ","LAYS   ",38]
[238,233,"JUICE ORANGE 100% ASEPTIC     ",12,"46 OZ ","SAHAR B",27]
[239,234,"JUICE DRINK PROTEIN ZONE      ",8,"15.2OZ","NKDJUCE",60]
[240,235,"DRINK RASP COOL BLUE WIDEMOUTH",24,"20 OZ ","GATRADE",46]
[241,236,"CHIP POTATO SRCRM & ONION LSDO",64,"1.5 OZ","LAYS   ",38]
[242,237,"PASTA MACARONI ELBOW          ",2,"10 LB ","AREZZIO",36]
[243,238,"SNACK BAR CHOC ALMND GLUT FREE",72,"1.16OZ","KELLOGG",28]
[244,239,"SNACK CHEESE CRUNCHY HOT LSS  ",64,"2 OZ  ","CHEETOS",38]
[245,240,"SNACK CHEESE CRNCH BG GRB LSS ",64,"2 OZ  ","CHEETOS",38]
[246,241,"DRINK FRUIT PUNCH WIDEMOUTH PL",24,"20 OZ ","GATRADE",39]
[247,242,"RICE BASMATI BRN              ",12,"2#    ","IND HAR",10]
[248,243,"CHIP POTATO BBQ LSS           ",64,"1.5 OZ","LAYS   ",38]
[249,244,"JUICE APPLE 100% ASEPTIC      ",12,"46 OZ ","SAHAR B",29]
[250,245,"BEAN BLACK                    ",6,"#10   ","CASASOL",34]
[251,246,"SNACK BAR CRAN ALMND GLUT FREE",72,"1.16OZ","KELLOGG",6]
[252,247,"CHIP MULTIGRAIN GRDN SALSA LSS",64,"1.5OZ ","SUNCHIP",38]
[253,248,"CHIP TORTILLA NACHO CHS LSS   ",64,"1.75OZ","DORITOS",38]
[254,249,"WALNUT HALF & PIECES          ",3,"2 LB  ","SYS CLS",35]
[255,250,"MUSTARD YELLOW PACKETS        ",500,"5.5 GM","FLVFRSH",37]
[256,251,"CEREAL OATMEAL MAPLE BRN SUG  ",24,"1.69OZ","QUAKER ",18]
[257,252,"SUGAR PACKET                  ",2000,"1/10OZ","SYS CLS",75]
[258,253,"JUICE DRINK BERRY/VEG MCHN SMT",8,"15.2OZ","NKDJUCE",60]
[259,254,"TOMATO DICED IN JUICE CA      ",6,"#10   ","SYS CLS",40]
[260,255,"JUICE PNAPL 100% ASEPTIC      ",12,"46 OZ ","SAHAR B",37]
[261,256,"SAUCE SOY PACKET              ",200,".5 OZ ","KIKOMAN",98]
[262,257,"TOMATO SUNDRIED OLIVE OIL DOM ",6,"2 LB  ","AREZZIO",29,6]
[263,258,"CHIP POTATO BKD BIG GRAB      ",64,"1.125Z","BKDLAYS",38]
[264,259,"CHIP POTATO CHD SRCRM RDGD BG ",64,"1.5OZ ","RUFFLES",38]
[265,260,"BEAN PINTO FCY                ",6,"#10   ","CASASOL",34]
[266,261,"HONEY PURE CLOVER GR A JUG    ",6,"5 LB  ","SYS CLS",23,2]
[267,262,"SAUCE HOT PKTS                ",500,"7 GR  ","TAPATIO",65]
[268,263,"OIL OLIVE EXTRA VIRGIN        ",3,"1GAL  ","AREZZIO",13]
[269,264,"WINE COOKING CHABLIS          ",4,"1 GAL ","ROLAND ",19]
[270,265,"CRANBERRY DRIED & SWEETENED   ",2,"48 OZ ","OCNSPRY",46]
[271,266,"CEREAL HOT GRITS QUICK HOMINY ",12,"24Z   ","QUAKER ",18]
[272,267,"CHIP TORTILLA COOL RANCH LSS  ",64,"1.75OZ","DORITOS",39]
[273,268,"SUGAR GRANULATED XFINE CANE   ",1,"25 LB ","SYS CLS",36]
[274,269,"PICKLE DILL CHIP KK 400/450   ",4,"1 GAL ","BBRLCLS",28]
[275,270,"SAUCE BBQ PKT                 ",500,"12 GM ","HSE REC",17]
[276,271,"SOUP BASE VEGETABLE LIQ CONC  ",4,"32 OZ ","KNORR  ",15]
[277,272,"SAUCE TOMATO                  ",6,"#10   ","SYS CLS",29]
[278,273,"STOCK BASE BRN VEAL REDUCED   ",4,"16 OZ ","MORETHN",2]
[279,274,"SOUP BASE CHICKEN LIQ CONC    ",4,"32 OZ ","KNORR  ",19]
[280,275,"CEREAL OATMEAL APPLE CINNAMON ",24,"1.51OZ","QUAKER ",18]
[281,276,"SUGAR GRANULATED EXTRA FINE   ",1,"50 LB ","C&H    ",59]
[282,277,"DRESSING RANCH BUTTERMILK     ",4,"1 GAL ","SYS CLS",null,34]
[283,278,"PEPPER RED RSTD WHL IMP       ",12,"28 OZ ","AREZZIO",26]
[284,279,"OIL SESAME BLENDED            ",4,"1 GAL ","JADE MT",12]
[285,280,"SALT KOSHER FLAKE COARSE      ",12,"3 LB  ","DIACRYS",15]
[286,281,"VINEGAR RICE SEASONED         ",4,"1 GAL ","NAKANO ",12,4]
[287,282,"SPICE CUMIN GRND              ",3,"4.5 LB","IMP/MCC",null,13]
[288,283,"BEAN KIDNEY DARK RED          ",6,"#10   ","SYS CLS",21]
[289,284,"CEREAL OATMEAL MDLY SUMR BRY  ",12,"2.46Z ","QUAKER ",18]
[290,285,"CEREAL OATMEAL CNTRY APL/WAL  ",12,"2.64OZ","QUAKER ",18]
[291,286,"WINE COOKING SHERRY           ",4,"1 GAL ","SYS CLS",12,5]
[292,287,"RICE BASMATI WHITE            ",1,"25 LB ","PRODUCR",25]
[293,288,"RICE SHORT GRAIN KOSHIHIKARI  ",1,"15 LB ","AKIYAMA",25]
[294,289,"PASTE TAHINI                  ",12,"32 OZ ","ROLAND ",null,38]
[295,290,"SPICE GARLIC GRANULATED       ",3,"6.5 LB","SYS CLS",null,24]
[296,291,"CREAMER NON-DAIRY PWDR PKT    ",2000,"2.8 GM","WHLFARM",13]
[297,292,"PEPPER JALAPENO SLI FIELD RUN ",6,"#10   ","SYS REL",35]
[298,293,"RELISH SWT GRN PACKET         ",500,"9 GM  ","HEINZ  ",24]
[299,294,"RICE LONG GRAIN 4% BRKN       ",1,"50 LB ","SYS CLS",35]
[300,295,"ARTICHOKE BOTTOM 7/9 CT       ",24,"14 OZ ","MARIA  ",12]
[301,296,"JAM STRAWBERRY CUP            ",200,".5 OZ ","SMUCKER",27]
[302,297,"SODA COCA COLA CLS            ",24,"12 OZ ","COCACOL",48]
[303,298,"BREAD CRUMB JAP PANKO TOASTED ",1,"25LB  ","KIKOMAN",34]
[304,299,"CANDY VARIETY PK              ",6,"30 CT ","HERSHEY",5]
[305,300,"SAUCE CHILI SWEET THAI        ",12,"25FL Z","MAEPLOY",24]
[306,301,"SUGAR SUBSTITUTE PACKET GREEN ",1000,"1 GM  ","TRUVCAF",23]
[307,302,"SAUCE CHEESE JALAPENO TFF     ",6,"#10   ","MUYFRSC",12]
[308,303,"WRAP TORTILLA SPINACH 12 IN   ",5,"10 CT ","MIRNCHO",35]
[309,304,"SYRUP MAPLE SF W / SPLENDA    ",200,"1 OZ  ","HSE REC",14]
[310,305,"SPICE PAPRIKA GROUND          ",3,"5.25LB","IMP/MCC",null,3]
[311,306,"BEAN CANNELLINI               ",6,10,"TEASDAL",5]
[312,307,"TORTILLA FLOUR HRTY GRAIN 10  ",12,"12 CT ","MISSION",13]
[313,308,"SALT SEASONED TRDTNL          ",2,"4.5 LB","IMP/MCC",null,15]
[314,309,"SODA COKE DIET                ",24,"12 OZ ","COCACOL",29]
[315,310,"VINEGAR WINE WHITE 5%         ",4,"1 GAL ","SYS CLS",36]
[316,311,"SUGAR BROWN LIGHT             ",24,"1 LB  ","C&H    ",14]
[317,312,"DRESSING RANCH BUTTERMILK     ",4,"1 GAL ","SYS IMP",12]
[318,313,"JELLY GRAPE CUP               ",200,".5 OZ ","SMUCKER",6]
[319,314,"FILLING PIE RASP RED          ",6,"#10   ","BIRDS I",2]
[320,315,"PEANUT BUTTER CREAMY CUP      ",200,".75 OZ","SKIPPY ",15]
[321,316,"FLOUR ALL PURP H&R BL EN MT   ",1,"25 LB ","SYS CLS",39]
[322,317,"SOUP CREAM OF MSHRM LO-SODIUM ",12,"49.5OZ","CAMPBEL",19]
[323,318,"NUT CASHEW RSTD UNSLTD        ",3,"2 LB  ","GARVEY ",12]
[324,319,"SALT SEASONED                 ",4,"5 LB  ","LAWRYS ",null,14]
[325,320,"SPICE GARLIC PWDR             ",3,"6#    ","IMP/MCC",null,16]
[326,321,"SOUP BASE BEEF LIQ CONC       ",4,"32 OZ ","KNORR  ",17]
[327,322,"VINEGAR DISTILLED WHITE 5%    ",4,"1 GAL ","SYS CLS",26]
[328,323,"PASTA FETTUCCINE 10           ",4,"5 LB  ","AREZZIO",39]
[329,324,"SAUCE TABASCO PACKET          ",200,"3 GM  ","TABASCO",34]
[330,325,"SPICE PEPPER PACKET .1 GM     ",6,"1000CT","SYS CLS",6]
[331,326,"SEAWEED DRIED NORI GREEN      ",12,"50 CT ","MOTYAMA",5]
[332,327,"CLAM OCEAN CHOPPED            ",12,"51 OZ ","MRFRSTY",5]
[333,328,"DRESSING CAESAR WITH EGG      ",4,"1 GAL ","SYS IMP",null,26]
[334,329,"DRESSING BALSAMIC VINEGARETTE ",4,"1GAL  ","KENS   ",null,18]
[335,330,"BEAN GARBANZO FCY NO SULFITE  ",6,"#10   ","SYS CLS",15]
[336,331,"CEREAL HOT OAT QUICK          ",12,"42 OZ ","HSE REC",12]
[337,332,"SUGAR SUB BLUE PACKET         ",1,"2000CT","EQUAL  ",29]
[338,333,"CROUTON SEASONED HMSTY ZTF    ",8,"2.5 LB","SYS CLS",12]
[339,334,"SAUCE MARINARA ALLPURPOSE     ",6,"#10   ","AREZIMP",13]
[340,335,"CHIP VARIETY SYSCO/FRITO LAY  ",1,"60 CT ","LAYS   ",23]
[341,336,"MUSTARD DIJON W/WHT WINE TIN  ",4,"9 LB  ","INTLIMP",null,6]
[342,337,"SAUCE SOY GLUTEN FREE         ",4,"1 GAL ","JADE MT",17]
[343,338,"NUT ALMOND BLNCHD SLVRD       ",6,"14 OZ ","AZAR   ",12]
[344,339,"RICE ARBORIO ITAL SUPERFINO   ",10,"1KG   ","AREZZIO",28]
[345,340,"TOMATO PASTE FANCY CA         ",24,"12 OZ ","HUNTS  ",22]
[346,341,"CEREAL HOT OAT QUICK          ",12,"42 OZ ","QUAKER ",21]
[347,342,"WINE COOKING BURGUNDY         ",4,"1 GAL ","SYS CLS",19]
[348,343,"PEACH SLI Y/C PEAR JUCE DOMSTC",6,"#10   ","SYS CLS",22]
[349,344,"SAUCE HOISIN                  ",6,"5 LB  ","JADE MT",null,18]
[350,345,"MOLASSES FCY                  ",4,"1 GAL ","BKRSCLS",null,8]
[351,346,"FLOUR HARVEST KING UNBLCHD    ",1,"50 LB ","GOLDMDL",50]
[352,347,"CHIP POTATO RIDGED REG BIG GRB",64,"1.5 OZ","RUFFLES",25]
[353,348,"SAUCE WORCESTERSHIRE          ",4,"1 GAL ","SYS CLS",null,17]
[354,349,"PEANUT DRY RSTD UNSLTD        ",3,"2 LB  ","SYS CLS",9]
[355,350,"SPICE ONION POWDER            ",3,"5.5 LB","IMP/MCC",null,8]
[356,351,"RELISH SWEET PICKLE PREMIUM   ",4,"1 GAL ","BBRLCLS",2,12]
[357,352,"SEASONING POULTRY             ",6,"12 OZ ","IMP/MCC",null,16]
[358,353,"OIL OLIVE CHILI               ",1,"1 GAL ","BOYAJAN",0,6]
[359,354,"RICE STICK                    ",30,"16 OZ ","SILSPDG",12]
[360,355,"BAR NTRTNL CHOC CHIP KIDS ZBAR",9,"18 CT ","CLFBARS",17,7]
[361,356,"MIX COCKTAIL CREAM OF COCONUT ",12,"57.5OZ","COCOLPZ",5]
[362,357,"BEAN BAKED VEGETARIAN         ",6,"#10   ","BUSH   ",15]
[363,358,"SODA SPRITE CANS 4/6 PK       ",24,"12 OZ ","SPRITE ",26]
[364,359,"SODA ORANGE CAN               ",24,"12 OZ ","SUNKIST",26]
[365,360,"SAUCE SOY TAMARI GLUTEN FREE  ",6,".5 GAL","KIKOMAN",6]
[366,361,"PECAN PCS MEDIUM FCY RAW      ",3,"2 LB  ","SYS CLS",10]
[367,362,"OIL WALNUT RSTD               ",6,"33.8OZ","LATOURA",3]
[368,363,"PEA BLACKEYE DRIED            ",1,"20 LB ","SYS CLS",15]
[369,364,"JUICE CRNBRY 27% CCKTL ASEPTIC",12,"46 OZ ","SAHAR B",22]
[370,365,"PASTA SPAGHETTI 10            ",2,"10 LB ","AREZZIO",23]
[371,366,"VINEGAR RICE NATURAL          ",4,"1 GAL ","NAKANO ",5,2]
[372,367,"DRESSING ITALIAN GOLDEN       ",4,"1 GAL ","SYS REL",null,25]
[373,368,"RICE WILD POLY                ",2,"5 LB  ","SYS IMP",10]
[376,371,"CHIP TORTILLA CORN WHT RND    ",6,"2 LB  ","CASASOL",3]
[377,372,"COCONUT SNOWFLAKE             ",1,"10 LB ","BKRSCLS",2]
[378,373,"DRESSING 1000 ISLD CHEF STYLE ",4,"1 GAL ","SYS CLS",null,6]
[379,374,"OLIVE QUEEN PTD 100/120 CT    ",4,"1 GAL ","INTLIMP",null,3]
[380,375,"CHUTNEY MAJOR GRAY            ",12,"32 OZ ","INTLSUP",null,6]
[381,376,"CEREAL GRANOLA FRUIT BULKPAK  ",4,"50 OZ ","NAT VLY",1]
[382,377,"CAPER NONPAREIL IMPORTED      ",6,"32 OZ ","INTLIMP",null,7]
[383,378,"SEASONING ITALIAN WHLE        ",3,"1.75LB","IMP/MCC",null,2]
[384,379,"WINE COOKING MIRIN AJI MANJO  ",6,"60 OZ ","KIKOMAN",1]
[385,380,"NUT ALMOND BLNCHD SLI         ",6,"14 OZ ","SYS CLS",1]
[387,382,"SYRUP CORN LIGHT W/VANILA     ",4,"1 GAL ","SYS CLS",1]
[389,384,"RICE PAPER 22 CM              ",48,"12 OZ ","PACKER ",1]
[390,385,"SPICE SAFFRON TIN             ",12,"1 OZ  ","AZAFRAN",null,1]
[391,386,"SEASONING CARIBBEAN JERK      ",6,"18 OZ ","IMP/MCC",null,4]
[392,387,"SAUCES AND SEASONING",{"$nulls":9},{"$f":"SUM(L339:L460)","v":{"v":0,"d":"$0.00"}}]
[393,388,"POLENTA CORN MEAL YELLOW      ",1,"25 LB ","GIUSTO ",2]
[394,389,"SPICE CHILI PWDR LIGHT        ",3,"6 LB  ","SYS CLS",null,2]
[395,390,"DRESSING BLUE CHEESE CHUNKY   ",4,"1 GAL ","SYS CLS",1]
[396,391,"SPICE LEMON PEPPER            ",6,"28 OZ ","IMP/MCC",null,4]
[397,392,"SAUCE SWEET & SOUR RTU        ",6,".5 GAL","MINOR  ",1]
[398,393,"SPICE NUTMEG GROUND           ",6,"1 LB  ","IMP/MCC",null,3]
[399,394,"TOMATO PUREE 1.06 FANCY CA    ",6,"#10   ","SYS IMP",2]
[400,395,"SPICE OREGANO LEAF            ",3,"1.5 LB","IMP/MCC",null,2]
[401,396,"SPICE PEPPER WHITE GROUND     ",3,"5 LB  ","SYS CLS",null,1]
[402,397,"PEANUT BUTTER CREAMY          ",6,"5 LB  ","SYS CLS",null,3]
[403,398,"CHOCOLATE CHIP SEMI-SWT 4000CT",1,"22 LB ","VANLEER",1]
[404,399,"SUGAR CONFECTIONER            ",24,"1 LB  ","C&H    ",2]
[405,400,"FLAVOR VANILLA IMITATION #2   ",4,"1 GAL ","BKRSCLS",null,3]
[406,401,"BEAN LIMA PERUVIAN GNT        ",1,"10 LB ","D'ALLAS",1,3]
[407,402,"VINEGAR RASPBERRY             ",2,"5L    ","VILUX  ",1]
[408,403,"VINEGAR BALSAMIC STY WHT      ",2,"5 LTR ","DEL DES",1]
[409,404,"ANCHOVY FILET IN OLIVE OIL    ",12,"28 OZ ","ROLAND ",null,19]
[411,406,"PEPPER CHIPOTLE MORITA PWDR   ",1,"20 OZ ","D'ALLAS",3]
[412,407,"NOODLE THAI PAD RICE          ",10,"14 OZ ","D'ALLAS",3]
[413,408,"PASTA ORZO ROSAMARINA         ",4,"5 LB  ","LABELLA",12]
[414,409,"NUT FILBERT HZLNT BLANCHED WHL",1,"5#    ","LVOFARE",5]
[415,410,"JUICE CLAM OCEAN NO MSG       ",12,"46 OZ ","SYS CLS",21]
[416,411,"CORN MEAL YELLOW              ",1,"25 LB ","QUAKER ",10]
[417,412,"SPICE CINNAMON GROUND BAKER   ",3,"4.75LB","IMP/MCC",null,14]
[418,413,"SAUCE FISH                    ",12,"24 OZ ","3 CRAB ",5]
[419,414,"DRESSING CAESAR CREAMY ROBUSTO",4,"1 GAL ","HVR    ",null,9]
[420,415,"SODA GINGER ALE CUBE          ",24,"12 OZ ","CAN DRY",20]
[421,416,"GRAIN QUINOA RED              ",1,"10 LB ","INTLIMP",17]
[422,417,"RAISIN SEEDLESS GOLDEN        ",1,"10LB  ","SYS IMP",13]
[423,418,"VINEGAR WINE RED 5% 50 GRN    ",4,"1 GAL ","SYS CLS",15]
[424,419,"VINEGAR BALSAMIC THREE DIAMOND",2,"5 LTR ","DEL DES",9]
[425,420,"KETCHUP 29% XSTD              ",6,"#10   ","SYS REL",35]
[426,421,"CORN STARCH                   ",24,"1LB   ","ARGO   ",18]
[427,422,"SAUCE CHILI GRLC              ",3,"136 OZ","HUYFONG",5]
[428,423,"CRACKER SALTINE               ",500,"2 PK  ","HSE REC",26]
[429,424,"ORANGE MANDARIN SECT LIGHT SYR",6,"#10   ","INTLCLS",23]
[430,425,"SAUCE DEMI GLACE CONCENTRATE  ",6,"13.6OZ","MINOR  ",25]
[431,426,"JUICE MANGO TROPICAL CKTAIL   ",12,"46 OZ ","LYON M ",5]
[432,427,"MUSTARD YELLOW SQZ BTL        ",16,"9 OZ  ","HEINZ  ",18]
[433,428,"DRINK LMN/LM WIDEMOUTH PLST   ",24,"20 OZ ","GATRADE",35]
[434,429,"SYRUP PANCAKE & WAFFLE 5% MAPL",4,"1 GAL ","SYS IMP",15]
[435,430,"CRACKER SALTINE ZESTA 1525 CT ",1,"10 LB ","KEEBLER",12]
[436,431,"SALT PKT .6 GM                ",6,"1000CT","SYS CLS",6]
[437,432,"DRESSING ITALIAN GOLDEN       ",4,"1 GAL ","SYS CLS",5]
[438,433,"FLOUR PASTRY UNBLCH CAMEO     ",1,"50 LB ","GOLDMDL",49]
[439,434,"DRESSING CILANTRO VINGT LFAT  ",2,"1 GAL ","SYS IMP",5]
[440,435,"SPICE PEPPER BLK GRND         ",3,"5 LB  ","SYS CLS",null,15]
[441,436,"COUSCOUS INTL ISRAELI         ",4,"5#    ","ROLAND ",19]
[442,437,"TOMATO STEWED FANCY CA        ",6,"#10   ","ANG MIA",15]
[443,438,"PASTA BOWTIE                  ",2,"5 LB  ","LABELLA",26]
[444,439,"QUINOA GRAIN SPCLTY           ",1,"10 LB ","INTLIMP",34]
[445,440,"MARMALADE ORANGE CUP          ",200,".5 OZ ","SMUCKER",46]
[446,441,"SAUCE TABASCO HOT             ",12,"5 OZ  ","TABASCO",25]
[447,442,"VINEGAR WINE CHAMPAGNE FRN 7% ",2,"5 LTR ","INTLSUP",15]
[448,443,"BEAN RED SM DRIED             ",1,"20 LB ","SYS CLS",18]
[449,444,"CRACKER RITZ                  ",20,"3.8 OZ","NABISCO",15]
[450,445,"OLIVE KALAMATA PITTED  6/2 KG ",6,"2 KG  ","MARIO  ",null,20]
[451,446,"OLIVE RIPE SLI                ",6,"#10   ","SYS OTT",16]
[452,447,"BEAN LENTIL DRIED             ",1,"20 LB ","SYS CLS",35]
[453,448,"CANDY BAR SNICKER 1.86 OZ     ",8,"48 CT ","SNICKER",null,5]
[454,449,"SAUCE CHILI HOT SRIRACHA      ",12,"28 OZ ","HUYFONG",35]
[455,450,"BEAN LENTIL BLK               ",1,"10 LB ","INTLIMP",15]
[456,451,"CRACKER CRUMB GRAHAM          ",1,"10 LB ","KEEBLER",15]
[457,452,"BEAN LIMA BABY DRIED          ",1,"20 LB ","SYS CLS",10]
[458,453,"JUICE DRINK LIVELY CARROT NKDJ",8,"12 OZ ","NKDJUCE",1]
[459,454,"VINEGAR APPLE CIDER           ",4,"1 GAL ","4 MONKS",15]
[460,455,"SPICE PICKLING WHL            ",6,"13 OZ ","IMP/MCC",null,10]
[461,456,"TOMATO DICED FCY IN JUICE CA  ",6,"#10   ","ANG MIA",1]
[462,457,"JUICE DRINK BOLD BEET NKDJUCE ",8,"12 OZ ","NKDJUCE",1]
[463,458,"WATER SPARKLING IN GLASS      ",12,"1 LTR ","SANBENE",10]
[464,459,"SAUCE TERIYAKI                ",4,"1 GAL ","KIKOMAN",null,20]
[465,460,"JUICE DRINK GREEN MACH        ",8,"10 OZ ","NKDJUCE",55]
[466,461,"PEPPERONCINI SLICED IMPORTED  ",4,"93 OZ ","BBRLCLS",10]
[467,462,"PASTA LINGUINE 10 IN          ",2,"10 LB ","LABELLA",25]
[468,463,"PASTA BOWTIE TRICOLOR         ",2,"5 LB  ","LABELLA",12]
[469,464,"BEAN KIDNEY DARK RED DRIED    ",1,"20 LB ","SYS CLS",14]
[470,465,"CORN BABY CUT IN BRINE        ",6,"#10   ","PACKER ",15]
[471,466,"FLOUR WHEAT DURUM EXTRA FCY   ",1,"50 LB ","SPERRY ",18]
[472,467,"PASTA ROTINI/SPIRAL GARDEN    ",2,"10 LB ","LABELLA",20]
[473,468,"PASTA LASAGNA RIDGED 10       ",12,"1 LB  ","LABELLA",15]
[474,469,"BEAN LENTIL GREEN FRECH       ",1,"10 LB ","INTLIMP",12]
[475,470,"BEAN LENTIL RED CHIEF         ",1,"10 LB ","INTLIMP",15]
[476,471,"KETCHUP SQUEEZE UPSD DN RED   ",12,"20 OZ ","FRENCHS",25]
[477,472,"SPICE OREGANO MEXICAN         ",1,"3 LB  ","CHILEGY",5]
[478,473,"SPICE BASIL LEAVES            ",3,"22 OZ.","IMP/MCC",0,5]
[479,474,"BAKING SODA                   ",12,"24 OZ ","SYS CLS",15]
[480,475,"FLOUR SEMOLINA UNBLCH         ",1,"50 LB ","GOLDMDL",25]
[481,476,"CHIP CRACKER SRCRM & ONION    ",36,".87 OZ","KELLOGG",8]
[482,477,"YEAST COMPRESSED FRSH ESL     ",24,"1 LB  ","FLEISHM",null,35]
[483,478,"SPICE MINT LEAVES WHL         ",6,"4 OZ  ","MC CORM",null,6]
[484,479,"PEPPER CHIPOTLE IN ADOBO SAUCE",12,"7 OZ  ","EMBASSA",8]
[485,480,"OLIVE QUEEN STFD PMTO100/120  ",4,"1 GAL ","INTLIMP",null,5]
[486,481,"SPICE BAY LEAVES WHL          ",3,"8 OZ. ","IMP/MCC",null,15]
[487,482,"SPICE SAVORY GRND             ",1,"14 OZ ","D'ALLAS",null,3]
[488,483,"SPICE HERB DE PROVENCE        ",6,"7 OZ  ","D'ALLAS",null,5]
[489,484,"SPICE CLOVE WH                ",6,"11 OZ ","IMP/MCC",null,8]
[490,485,"SPICE FIVE CHINESE            ",6,"1 LB  ","MC CORM",null,20]
[491,486,"FLOUR H&R ALL PURPOSE         ",1,"50 LB ","GOLDMDL",65]
[492,487,"OLIVE KALAMATA PITTED         ",6,"2 KG  ","MARTNS ",null,14]
[493,488,"SPICE GINGER GROUND           ",6,"1 LB  ","IMP/MCC",null,15]
[494,489,"SPICE CINNAMON STICK          ",6,"8 OZ  ","IMP/MCC",null,10]
[495,490,"PASTE TAMARIND CONC BAG       ",1,"14Z   ","VD     ",5]
[496,491,"PASTE CHILI CHIPOTLE MORITA   ",1,"1 LB  ","D'ALLAS",5]
[497,492,"SEASONING SEAFOOD             ",12,"1# TIN","OLD BAY",null,35]
[498,493,"PRESERVE STRAWBERRY           ",6,"#10   ","SYS CLS",null,12]
[499,494,"SPICE PARSLEY FLAKE           ",3,"10 OZ ","IMP/MCC",null,12]
[500,495,"JUICE APPLE SPLASH            ",40,"6 OZ  ","CAPRI  ",5]
[501,496,"SPICE MUSTARD BLK             ",1,"20 OZ ","D'ALLAS",5]
[502,497,"SPICE FENNEL SEED WHL         ",6,"14 OZ ","IMP/MCC",null,10]
[503,498,"SAUCE WORCESTERSHIRE GLT FREE ",4,"1 GAL ","SYS CLS",null,25]
[504,499,"MUSTARD DRY PWDR TIN          ",12,"16 OZ ","COLMANS",null,15]
[505,500,"SPICE CORIANDER GRND          ",6,"14 OZ ","IMP/MCC",null,5]
[506,501,"SODA CLUB SODA CAN            ",24,"12 OZ ","CAN DRY",10]
[507,502,"GINGER PICKLED SUSHI SHOGA    ",12,"12 OZ ","PACKER ",null,20]
[508,503,"PEPPERONCINI WHOLE IMPORTED   ",4,"1 GAL ","BBRLCLS",null,25]
[509,504,"SAUCE OYSTER                  ",6,"5 LB  ","JADE MT",null,10]
[510,505,"MIX COCKTAIL GRENADINE        ",12,"1 LTR ","ROSES  ",null,10]
[511,506,"MUSTARD YELLOW PLS JUG        ",4,"105 OZ","FRENCHS",null,20]
[512,507,"COCOA MIX INDIV               ",6,"50 CT ","SWSMISS",5,1]
[513,508,"COCONUT SHRD FCY SWEETENED    ",1,"10 LB ","BKRSCLS",15,1]
[514,509,"JUICE DRINK BRIGHT GREENS NKDJ",8,"12 OZ ","NKDJUCE",10,1]
[515,510,"SYRUP PANCAKE & WAFFLE        ",4,"1 GAL ","SYS CLS",15,11]
[516,null,"PAPER GOODS AND PACKAGING",{"$nulls":9},{"$f":"SUM(L462:L485)","v":{"v":0,"d":"$0.00"}}]
[517,511,"CONTAINER PAPER #4 TK OUT KRFT",90,"CT    ","SYS CLS",21]
[518,512,"LABEL ROLL RMVBL 2X4 HACCP    ",500,"RL    ","DAYDOTS",25]
[519,513,"LABEL ROLL RMVBL WTPF SHLFLIFE",500,"2X3   ","DAYDOTS",18]
[520,514,"GUEST CHECK 1PRT TAN 4.25X9 BK",40,"50 CT ","NATIONL",12]
[521,515,"TAPE PAPR REG THERMAL 3-1/8   ",50,"200FT ","SYSCO  ",5]
[522,516,"NAPKIN DNR 15X17 2PLY BLACK   ",8,"125CT ","SYS CLS",5]
[523,517,"CONTAINER PLAS PIE WDG HNG CLR",8,"63CT  ","SYS CLS",1]
[524,518,"CLOTH CHS REG WGT 36          ",1,"60 YD ","SYS CLS",2]
[525,519,"PAD SCOUR GRN 6X9IN ANTIMICRO ",1,"20CT  ","SYSCO  ",5]
[526,520,"PLATE PLASTIC 10.25 BLK       ",500,"EA    ","CHINET ",1]
[527,521,"WIPER TOWEL BLUE LHT DUTY     ",200,"13X20 ","SYS CLS",12]
[528,522,"BOWL PAPER PRO NATURALS 12 OZ ",8,"125 CT","CHINET ",1]
[529,523,"LID FOIL F/FULL STM TBL PAN   ",80,"21X13 ","SYS CLS",1]
[530,524,"GUEST CHECK NOCARB 2PART GREEN",50,"50CT  ","SYSCO  ",1]
[531,525,"PICK WOOD FRILL 4 IN          ",10,"1000CT","HANGARD",null,11]
[532,526,"PAN FOIL STM TBL FULL DP 3-3/8",40,"FULL  ","SYS CLS",1]
[533,527,"TWINE COTTON COOKNG 16PLY CONE",20,"2.5LB ","SYS CLS",null,2]
[534,528,"NAPKIN BEV 9.5X9.5 2PLY BLACK ",4,"250CT ","SYS CLS",5]
[535,529,"FILM PVC ROLL 2000FT          ",1,"18 IN ","SYS CLS",15]
[536,530,"SKEWER BAMBOO 6 IN            ",10,"10/100","HANGARD",null,2]
[537,531,"SKEWER BAMBOO THIN 8 IN       ",12,"16/100","ROYAL  ",null,1]
[538,532,"SKEWER BAMBOO 10 IN           ",10,"10/100","HANGARD",null,1]
[539,533,"LABEL ROLL PROD/USEBY/TEMP 2X4",1,"500 CT","SYSCO  ",null,5]
[540,534,"LABEL ROLL USE BY/SHELF 4X2   ",500,"RL    ","DAYDOTS",30]
[541,null,"CHEMICALS - ECO-LAB",{"$nulls":9},{"$f":"SUM(L487:L503)","v":{"v":0,"d":"$0.00"}}]
[542,535,"SANITIZER OASIS 146 MULTI QUAT",1,"2.5GAL","ECOLAB ",10]
[543,536,"DETERGENT HAND SOLID SOLITAIRE",2,"5 LB  ","ECOLAB ",15]
[544,537,"RINSE AID BRILLIANCE SLD DISP ",1,"2.5LB ","KEYSTON",8]
[545,538,"DETERGENT MACH SOLID POWER XL ",4,"9LB   ","ECOLAB ",15]
[546,539,"CLEANER FLOOR SANI WASHNWALK  ",1,"2.5GAL","KEYSTON",25]
[547,540,"DETERGENT LAUNDRY PWDR WHT RTU",1,"25LB  ","KEYSTON",30]
[548,541,"PRESOAK FLATWARE ASSURE       ",4,"1 GAL ","ECOLAB ",5]
[549,542,"CLEANER OVEN GREASESTRIP+ NP  ",6,"32 OZ ","ECOLAB ",12]
[550,543,"DEGREASER HEAVY DUTY RTU      ",4,"1GAL  ","SYS REL",12]
[551,544,"CLEANER DEGRSR ORGFRC OASIS137",1,"2.5GAL","ECOLAB ",2]
[552,545,"CLEANER OVEN & GRL ARSL       ",6,"20OZ  ","KEYSTON",25]
[553,546,"DELIMER DESCALER LIME AWAY RTU",2,"1GAL  ","KEYSTON",15]
[554,547,"CLEANER DISINFECT PEROX RTU   ",6,"32OZ  ","KEYSTON",2]
[555,548,"DETERGENT POT/PAN LIQ BLUE RTU",9,"32OZ  ","KEYSTON",12]
[556,549,"CLEANER LIQ VIGOROSO LAVEN RTU",4,"1GAL  ","KEYSTON",5]
[567,559,"BRUSH PASTRY BOAR 2IN WOOD HDL",1,"2CT   ","SYSCO  ",2]
[568,560,"PAIL SANITIZING RED 6QT       ",1,"6 QT  ","ECOLAB ",2]
[588,null,"COFFEE - NESCAFE",{"$nulls":9},{"$f":"SUM(L505:L511)","v":{"v":0,"d":"$0.00"}}]
[589,579,"COFFEE CAPP FRCH VAN          ",6,"2 LB  ","NESCAFE",12]
[590,580,"COCOA MIX SUPREME             ",12,"1.75LB","NESTLE ",5]
[591,581,"COFFEE FRZDRY ALEGRIA DELICATE",4,"250 GM","NESCAFE",4]
[592,582,"COFFEE FRZDRY SMOOTH          ",3,"400 GM","NESCAFE",3]
[593,583,"TEA HOT BAG BLK  ENV          ",10,"100 CT","LIPTON ",4]
[594,584,"COCOA MIX DISPENSER DUTCH     ",12,"2 LB  ","CITAVO ",20]
[595,585,"COFFEE FRZDRY DELICATE        ",3,"400 GM","NESCAFE",1]
[598]
[{"$nulls":10},"Total:",{"$f":"SUM(L5:L512)","v":{"v":0,"d":"$0.00"}},{"$f":"SUM(M4:M512)","v":{"v":0,"d":"$0.00"}}]
[]
[null,null,{"$f":"+C4","v":"DAIRY"},{"$nulls":9},{"$f":"+M4","v":{"v":0,"d":"$0.00"}}]
[null,null,{"$f":"+C41","v":"MEAT"},{"$nulls":9},{"$f":"+M41","v":{"v":0,"d":"$0.00"}}]
[null,null,{"$f":"+C57","v":"SEAFOOD"},{"$nulls":9},{"$f":"+M57","v":{"v":0,"d":"$0.00"}}]
[null,null,{"$f":"+C67","v":"POULTRY"},{"$nulls":9},{"$f":"+M67","v":{"v":0,"d":"$0.00"}}]
[null,null,{"$f":"+C82","v":"DRY GOODS, BAKING,STAPLES"},{"$nulls":9},{"$f":"+M82","v":{"v":0,"d":"$0.00"}}]
[null,null,{"$f":"+C147","v":"BEVERAGE, SNACKS, STAPLES"},{"$nulls":9},{"$f":"+M147","v":{"v":0,"d":"$0.00"}}]
[null,null,{"$f":"+C338","v":"SAUCES AND SEASONING"},{"$nulls":9},{"$f":"+M338","v":{"v":0,"d":"$0.00"}}]
[null,null,{"$f":"+C461","v":"PAPER GOODS AND PACKAGING"},{"$nulls":9},{"$f":"+M461","v":{"v":0,"d":"$0.00"}}]
[null,null,{"$f":"+C486","v":"CHEMICALS - ECO-LAB"},{"$nulls":9},{"$f":"+M486","v":{"v":0,"d":"$0.00"}}]
[null,null,{"$f":"+C504","v":"COFFEE - NESCAFE"},{"$nulls":9},{"$f":"+M504","v":{"v":0,"d":"$0.00"}}]
[{"$nulls":12},{"$f":"SUM(M515:M524)","v":{"v":0,"d":"$0.00"}}]
[]
[null,null,"Other Charges:"]
[]
[null,null,"Per Trip Delivery Charge: $ _______________"]
[]
[null,null,"Vendor Name: _________________________"]
[null,null,"Title: _________________________________"]
[null,null,"Contact Person: ________________________"]
[null,null,"Authorized Signature:____________________"]
[null,null,"Date: ___________________"]